Workbook

Sheet Лист1
E2: Приложение № 2 к Муниципальному контракту № _________ от «_____» _________ 2025 г
A5: УТВЕРЖДАЮ: | J5: СОГЛАСОВАНО:
A6: Директор ООО «Нигма» | J6: _______________________________
J7: _______________________________
A9: __________________ Л.Р. Гильфанова | J9: ____________________ /
B11: Меню питания для детей в период отдыха и оздоровления
B12: ( пришкольные лагеря) на 2025 г
A15: № НД | B15: Прием пищи, Наименование блюда | C15: Масса* порции, г. | D15: Пищевые вещества, г. | G15: Энерг. ценность, ккал | H15: Витамины, мг | L15: Минеральные вещества, мг
D16: Белки | E16: Жиры | F16: Углеводы | H16: B1 | I16: A | J16: C | K16: E | L16: Ca | M16: P | N16: Mg | O16: Fe
A17: 1 день
A18: Завтрак
A19: 338/17 | B19: Десерт фруктовый Яблоко | C19: 110 | D19: 0.60 | E19: 0.60 | F19: 13.05 | G19: 76.50 | H19: 0.04 | I19: 0.07 | J19: 14.5 | K19: 0.29 | L19: 24.22 | M19: 15.95 | N19: 11.6 | O19: 2.9
A20: 173/17 | B20: Каша молочная пшенная вязкая с маслом | C20: 200/5 | D20: 8.56 | E20: 6.22 | F20: 43.89 | G20: 265.83 | H20: 0.25 | I20: 2.28 | J20: 1.25 | K20: 0.25 | L20: 130.52 | M20: 204.02 | N20: 55.02 | O20: 1.46
A21: 377/17 | B21: Чай с лимоном (полусладкий) | C21: 200/7 | D21: 0.27 | E21: 0.06 | F21: 15.28 | G21: 62.73 | H21: 0.00 | I21: 0.07 | J21: 3.3 | K21: 0.02 | L21: 8.15 | M21: 10.01 | N21: 5.36 | O21: 0.87
B22: Хлеб Пшеничный | C22: 1/30 | D22: 2.28 | E22: 0.27 | F22: 14.91 | G22: 71.19 | H22: 0.05 | I22: 0.00 | J22: 0.00 | K22: 0.00 | L22: 7.8 | M22: 24.9 | N22: 10.5 | O22: 0.48
D23: =SUM(D19:D22) -> 11.71 | E23: =SUM(E19:E22) -> 7.15 | F23: 87.13 | G23: 476.25 | H23: 0.34 | I23: 2.42 | J23: 19.05 | K23: 0.56 | L23: 170.69 | M23: 254.88 | N23: 82.48 | O23: 5.71
A24: Пром. | B24: Сок фруктовый 0,200 гр | C24: 1 шт | D24: 1.4 | E24: 0.00 | F24: 24.4 | G24: 103.2 | H24: 0.02 | I24: 0.00 | J24: 14 | K24: 0.00 | L24: 34 | M24: 36 | N24: 12 | O24: 0.6
D25: 1.4 | E25: 0.00 | F25: 24.4 | G25: 103.2 | H25: 0.02 | I25: 0.00 | J25: 14 | K25: 0.00 | L25: 34 | M25: 36 | N25: 12 | O25: 0.6
A26: Обед
A27: 71/17 | B27: Огурцы свежие порционно (доп. гарнир) | C27: 50 | D27: 0.49 | E27: 0.06 | F27: 1.53 | G27: 8.63 | H27: 0.02 | I27: 0.01 | J27: 6.12 | K27: 0.06 | L27: 14.08 | M27: 25.7 | N27: 8.57 | O27: 0.37
A28: 139/04 | B28: Суп картофельный с бобовыми с мясными фрикадельками | C28: 250/20 | D28: 11.17 | E28: 6.73 | F28: 22.20 | G28: 196.00 | H28: 0.31 | I28: 0.27 | J28: 4.6 | K28: 0.6 | L28: 139.46 | M28: 160.04 | N28: 29.69 | O28: 2.69
A29: ТТК-328к | B29: Плов "Сытный" | C29: 50/150 | D29: 17.30 | E29: 18.00 | F29: 39.70 | G29: 389.00 | H29: 0.24 | I29: 0 | J29: 0.20 | K29: 0.85 | L29: 43.86 | M29: 234.77 | N29: 35.82 | O29: 2.60
A30: ТТК-257н | B30: Напиток "Плодово-ягодный" из сухофруктов полусладкий | C30: 200 | D30: 0.5 | E30: 0.02 | F30: 19.43 | G30: 79.92 | H30: 0.00 | I30: 0.02 | J30: 0.03 | K30: 0.00 | L30: 8.25 | M30: 2.97 | N30: 1.46 | O30: 0.05
B31: Хлеб Пшеничный | C31: 1/30 | D31: 2.28 | E31: 0.27 | F31: 14.91 | G31: 71.19 | H31: 0.05 | I31: 0.00 | J31: 0.00 | K31: 0.00 | L31: 7.8 | M31: 24.9 | N31: 10.5 | O31: 0.48
B32: Хлеб Ржаной | C32: 1/30 | D32: 2.03 | E32: 0.4 | F32: 15.7 | G32: 74.49 | H32: 0.00 | I32: 0.00 | J32: 0.00 | K32: 0.00 | L32: 0.00 | M32: 0.00 | N32: 0.00 | O32: 0.00
D33: =SUM(D27:D32) -> 33.77 | E33: =SUM(E27:E32) -> 25.48 | F33: 113.47 | G33: 819.23 | H33: 0.62 | I33: =SUM(I27:I32) -> 0.62 | J33: 10.95 | K33: 1.51 | L33: 213.45 | M33: 448.38 | N33: 86.04 | O33: 6.19
B34: Итого за день | D34: =SUM(D23+D25+D33) -> 46.88 | E34: =SUM(E23+E25+E33) -> 32.63 | F34: 225.00 | G34: 1398.68 | H34: 0.98 | I34: 3.04 | J34: 44.00 | K34: 2.07 | L34: 418.14 | M34: 739.26 | N34: 180.52 | O34: 12.50
A35: 2 день
A36: Завтрак
A37: 1/17 | B37: Бутерброд с маслом | C37: 30/5 | D37: 2.33 | E37: 4.53 | F37: 16.09 | G37: 113.89 | H37: 0.05 | I37: 0.02 | J37: 0.00 | K37: 0.00 | L37: 9 | M37: 26.4 | N37: 10.52 | O37: 0.49
A38: 209/17 | B38: Яйцо вареное | C38: 1 шт | D38: 5.52 | E38: 5.04 | F38: 0.00 | G38: 67.44 | H38: 0.03 | I38: 0.27 | J38: 0.00 | K38: 0.29 | L38: 26.4 | M38: 92.16 | N38: 5.76 | O38: 1.2
A39: 173/17 | B39: Каша молочная Геркулесовая вязкая с маслом | C39: 200/5 | D39: 8.01 | E39: 9.75 | F39: 36.60 | G39: 262.70 | H39: 0.24 | I39: 1.28 | J39: 0.20 | K39: 0.81 | L39: 143.47 | M39: 235.90 | N39: 41.10 | O39: 1.72
A40: ТТК-198н | B40: Какао с молоком полусладкое | C40: 200 | D40: 3.39 | E40: 3.1 | F40: 16.98 | G40: 106.66 | H40: 0.04 | I40: 2.21 | J40: 0.5 | K40: 0.11 | L40: 108.20 | M40: 103.1 | N40: 15.8 | O40: 0.54
D41: =SUM(D37:D40) -> 19.25 | E41: =SUM(E37:E40) -> 22.42 | F41: 69.67 | G41: 550.69 | H41: 0.36 | I41: 3.78 | J41: 0.70 | K41: 1.21 | L41: 287.07 | M41: 457.56 | N41: 73.18 | O41: 3.95
A42: Пром. | B42: Сок фруктовый 0,200 гр | C42: 1 шт | D42: 1.4 | E42: 0.00 | F42: 24.4 | G42: 103.2 | H42: 0.02 | I42: 0.00 | J42: 14 | K42: 0.00 | L42: 34 | M42: 36 | N42: 12 | O42: 0.6
D43: 1.4 | E43: 0.00 | F43: 24.4 | G43: 103.2 | H43: 0.02 | I43: 0.00 | J43: 14 | K43: 0.00 | L43: 34 | M43: 36 | N43: 12 | O43: 0.6
A44: Обед
A45: ТТК -976 | B45: Салат из белокачанной капусты с зеленым горошком | C45: 75 | D45: 1.59 | E45: 4.10 | F45: 7.50 | G45: 81.00 | H45: 0.04 | I45: 25.1 | J45: 9.08 | K45: 0.12 | L45: 35.10 | M45: 40.69 | N45: 18.79 | O45: 0.76
A46: 148/2004 | B46: Суп лапша домашняя с цыплятами | C46: 250/20 | D46: 7.89 | E46: 8.40 | F46: 13.96 | G46: 171 | H46: 0.08 | I46: 28.02 | J46: 0.6 | K46: 0.47 | L46: 120.91 | M46: 90.61 | N46: 16.48 | O46: 0.96
A47: ТТК-490н | B47: Котлеты "Челнинские" с соусом томатным | C47: 75/40 | D47: 12.59 | E47: 17.08 | F47: 12.06 | G47: 252.35 | H47: 0.08 | I47: 0.01 | J47: 1.76 | K47: 0.33 | L47: 23.59 | M47: 156.35 | N47: 25.36 | O47: 1.32
A48: 202/17 | B48: Макаронные изделия отварные | C48: 150 | D48: 5.36 | E48: 4.37 | F48: 36.54 | G48: 206.89 | H48: 0.09 | I48: 0.02 | J48: 0.00 | K48: 1.07 | L48: 15.96 | M48: 47.07 | N48: 8.52 | O48: 0.87
A49: 342/17 | B49: Компот "Плодово-ягодный" из свежих яблок | C49: 200 | D49: 0.18 | E49: 0.18 | F49: 19.06 | G49: 78.58 | H49: 0.01 | I49: 0.02 | J49: 4.54 | K49: 0.09 | L49: 7.58 | M49: 4.99 | N49: 3.63 | O49: 0.91
B50: Хлеб Пшеничный | C50: 1/30 | D50: 2.28 | E50: 0.27 | F50: 14.91 | G50: 71.19 | H50: 0.05 | I50: 0.00 | J50: 0.00 | K50: 0.00 | L50: 7.8 | M50: 24.9 | N50: 10.5 | O50: 0.48
B51: Хлеб Ржаной | C51: 1/30 | D51: 2.03 | E51: 0.4 | F51: 15.7 | G51: 74.49 | H51: 0.00 | I51: 0.00 | J51: 0.00 | K51: 0.00 | L51: 0.00 | M51: 0.00 | N51: 0.00 | O51: 0.00
D52: =SUM(D45:D51) -> 31.92 | E52: =SUM(E45:E51) -> 34.80 | F52: 119.73 | G52: 935.50 | H52: 0.35 | I52: 53.17 | J52: 15.98 | K52: 2.08 | L52: 210.94 | M52: 364.61 | N52: 83.28 | O52: 5.30
D53: =SUM(D41+D43+D52) -> 52.57 | E53: =SUM(E41+E43+E52) -> 57.22 | F53: 213.80 | G53: 1589.39 | H53: 0.73 | I53: 56.95 | J53: 30.68 | K53: 3.29 | L53: 532.01 | M53: 858.17 | N53: 168.46 | O53: 9.85
A54: 3 день
A55: Завтрак
A56: 338/17 | B56: Десерт фруктовый Груша | C56: 150 | D56: 0.60 | E56: 0.45 | F56: 15.45 | G56: 70.50 | H56: 0.03 | I56: 0.00 | J56: 7.50 | K56: 0.15 | L56: 28.50 | M56: 24.00 | N56: 18.00 | O56: 3.45
A57: ТТК 270 | B57: Каша молочная вязкая "Дружба" с маслом | C57: 200/5 | D57: 6.30 | E57: 8.20 | F57: 43.21 | G57: 251.73 | H57: 0.22 | I57: 2.22 | J57: 0.50 | K57: 0.36 | L57: 134.46 | M57: 222.33 | N57: 31.11 | O57: 1.24
A58: 648/04 | B58: Кисель из концентрата полусладкий | C58: 200 | D58: 0.1 | E58: 0.00 | F58: 21.48 | G58: 86.3 | H58: 0.00 | I58: 0.00 | J58: 0.96 | K58: 0.00 | L58: 3.36 | M58: 4.32 | N58: 1.44 | O58: 0.1
B59: Хлеб Пшеничный | C59: 30 | D59: 2.28 | E59: 0.27 | F59: 14.91 | G59: 71.19 | H59: 0.05 | I59: 0.00 | J59: 0.00 | K59: 0.00 | L59: 7.8 | M59: 24.9 | N59: 10.5 | O59: 0.48
D60: =SUM(D56:D59) -> 9.28 | E60: =SUM(E56:E59) -> 8.92 | F60: 95.05 | G60: 479.72 | H60: 0.30 | I60: 2.22 | J60: 8.96 | K60: 0.51 | L60: 174.12 | M60: 275.55 | N60: 61.05 | O60: 5.27
A61: Пром. | B61: Сок фруктовый 0,200 гр | C61: 1 шт | D61: 1.4 | E61: 0.00 | F61: 24.4 | G61: 103.2 | H61: 0.02 | I61: 0.00 | J61: 14 | K61: 0.00 | L61: 34 | M61: 36 | N61: 12 | O61: 0.6
D62: 1.4 | E62: 0.00 | F62: 24.4 | G62: 103.2 | H62: 0.02 | I62: 0.00 | J62: 14 | K62: 0.00 | L62: 34 | M62: 36 | N62: 12 | O62: 0.6
A63: Обед
A64: 71/17 | B64: Помидор свежий порционно (доп. гарнир) | C64: 50 | D64: 0.31 | E64: 0.10 | F64: 2.45 | G64: 13.00 | H64: 0.00 | I64: 0.02 | J64: 8.26 | K64: 0.31 | L64: 6.12 | M64: 14.72 | N64: 6.67 | O64: 0.18
A65: 124/04 | B65: Щи из св кап с карт.с мясн фрик.со сметаной | C65: 250/20/5 | D65: 8.34 | E65: 9.11 | F65: 9.21 | G65: 182.22 | H65: 0.12 | I65: 27.34 | J65: 6.30 | K65: 0.59 | L65: 156.8 | M65: 163.84 | N65: 24.33 | O65: 1.71
A66: ТТК 28Н | B66: Запеканка картофельная с мясом "Школьная"с/м | C66: 200/5 | D66: 15.29 | E66: 22.95 | F66: 25.86 | G66: 371.14 | H66: 0.41 | I66: 0.06 | J66: 5.43 | K66: 0.62 | L66: 59.86 | M66: 329.39 | N66: 42.21 | O66: 4.72
A67: ТТК-258к | B67: Напиток "Плодово-ягодный" из изюма полусладкий | C67: 200 | D67: 0.51 | E67: 0.08 | F67: 19.38 | G67: 80.23 | H67: 0.00 | I67: 0.03 | J67: 0.15 | K67: 0.65 | L67: 8.25 | M67: 10.65 | N67: 4.8 | O67: 0.41
B68: Хлеб Пшеничный | C68: 1/30 | D68: 2.28 | E68: 0.27 | F68: 14.91 | G68: 71.19 | H68: 0.05 | I68: 0.00 | J68: 0.00 | K68: 0.00 | L68: 7.8 | M68: 24.9 | N68: 10.5 | O68: 0.48
B69: Хлеб Ржаной | C69: 1/30 | D69: 2.03 | E69: 0.4 | F69: 15.7 | G69: 74.49 | H69: 0.00 | I69: 0.00 | J69: 0.00 | K69: 0.00 | L69: 0.00 | M69: 0.00 | N69: 0.00 | O69: 0.00
D70: =SUM(D64:D69) -> 28.76 | E70: =SUM(E64:E69) -> 32.91 | F70: 87.51 | G70: 792.27 | H70: 0.58 | I70: 27.45 | J70: 20.14 | K70: 2.17 | L70: 238.83 | M70: 543.50 | N70: 88.51 | O70: 7.50
D71: =SUM(D60+D62+D70) -> 39.44 | E71: =SUM(E60+E62+E70) -> 41.83 | F71: 206.96 | G71: 1375.19 | H71: 0.90 | I71: 29.67 | J71: 43.10 | K71: 2.68 | L71: 446.95 | M71: 855.05 | N71: 161.56 | O71: 13.37
A73: 4 день
A74: Завтрак
A75: 338/17 | B75: Десерт фруктовый Апельсин | C75: 170 | D75: 1.53 | E75: 0.30 | F75: 17.50 | G75: 76.00 | H75: 0.07 | I75: 0.00 | J75: 60 | K75: 0.37 | L75: 57.8 | M75: 39.1 | N75: 22.1 | O75: 0.51
A76: 240/10 | B76: Пудинг из творога с яблоками со сгущ. молоком | C76: 150/30 | D76: 18.00 | E76: 27.80 | F76: 40.08 | G76: 452.00 | H76: 0.13 | I76: 4.19 | J76: 0.70 | K76: 0.33 | L76: 206.07 | M76: 278.02 | N76: 33.35 | O76: 2.25
A77: ТТК-475 | B77: Чай полусладкий | C77: 200 | D77: 0.2 | E77: 0.05 | F77: 7.00 | G77: 28.0 | H77: 0.00 | I77: 0.05 | J77: 0.1 | K77: 0.00 | L77: 4.95 | M77: 8.25 | N77: 4.4 | O77: 0.82
B78: Хлеб Пшеничный | C78: 1/30 | D78: 2.28 | E78: 0.27 | F78: 14.91 | G78: 71.19 | H78: 0.05 | I78: 0.00 | J78: 0.00 | K78: 0.00 | L78: 7.8 | M78: 24.9 | N78: 10.5 | O78: 0.48
D79: =SUM(D75:D78) -> 22.01 | E79: =SUM(E75:E78) -> 28.42 | F79: 79.49 | G79: 627.19 | H79: 0.25 | I79: 4.24 | J79: 60.80 | K79: 0.70 | L79: 276.62 | M79: 350.27 | N79: 70.35 | O79: 4.06
A80: Пром. | B80: Сок фруктовый 0,200 гр | C80: 1 шт | D80: 1.4 | E80: 0.00 | F80: 24.4 | G80: 103.2 | H80: 0.02 | I80: 0.00 | J80: 14 | K80: 0.00 | L80: 34 | M80: 36 | N80: 12 | O80: 0.6
D81: 1.4 | E81: 0.00 | F81: 24.4 | G81: 103.2 | H81: 0.02 | I81: 0.00 | J81: 14 | K81: 0.00 | L81: 34 | M81: 36 | N81: 12 | O81: 0.6
A82: Обед
A83: 24/17 | B83: Салат из св.помидоров и огурцов | C83: 75 | D83: 0.7 | E83: 4.50 | F83: 5.55 | G83: 53.0 | H83: 0.04 | I83: 0.00 | J83: 12.75 | K83: 0.17 | L83: 12.7 | M83: 23.30 | N83: 12.10 | O83: 0.54
A84: 98/17 | B84: Суп крестьянский с крупой с мясными фрикадельками | C84: 250/20 | D84: 6.90 | E84: 11.1 | F84: 15.70 | G84: 191.00 | H84: 0.04 | I84: 27.79 | J84: 5.8 | K84: 0.00 | L84: 135.87 | M84: 184.5 | N84: 20.17 | O84: 1.9
A85: ТТК-53к | B85: Мякоть птицы тушеная в соусе | C85: 50/50 | D85: 14.60 | E85: 10.4 | F85: 3.79 | G85: 184.50 | H85: 0.08 | I85: 11.54 | J85: 1.29 | K85: 0.64 | L85: 17.81 | M85: 178.15 | N85: 28.7 | O85: 1.57
A86: 510/04 | B86: Каша гречневая вязкая | C86: 150 | D86: 4.65 | E86: 4.75 | F86: 24.86 | G86: 160.8 | H86: 0.16 | I86: 0.1 | J86: 0.00 | K86: 0.29 | L86: 9.65 | M86: 110.42 | N86: 22.99 | O86: 2.46
A87: 388/17 | B87: Напиток из шиповника | C87: 200 | D87: 0.68 | E87: 0.28 | F87: 20.76 | G87: 88.20 | H87: 0.01 | I87: 0.00 | J87: 15.30 | K87: 0.2 | L87: 21.34 | M87: 3.44 | N87: 3.44 | O87: 0.60
B88: Хлеб Пшеничный | C88: 1/30 | D88: 2.28 | E88: 0.27 | F88: 14.91 | G88: 71.19 | H88: 0.05 | I88: 0.00 | J88: 0.00 | K88: 0.00 | L88: 7.8 | M88: 24.9 | N88: 10.5 | O88: 0.48
B89: Хлеб Ржаной | C89: 1/30 | D89: 2.03 | E89: 0.4 | F89: 15.7 | G89: 74.49 | H89: 0.00 | I89: 0.00 | J89: 0.00 | K89: 0.00 | L89: 0.00 | M89: 0.00 | N89: 0.00 | O89: 0.00
D90: =SUM(D83:D89) -> 31.81 | E90: =SUM(E83:E89) -> 31.70 | F90: 101.27 | G90: 823.18 | H90: 0.38 | I90: 39.43 | J90: 35.15 | K90: 1.34 | L90: 205.17 | M90: 524.71 | N90: 97.90 | O90: 7.55
D91: =SUM(D79+D81+D90) -> 55.22 | E91: =SUM(E79+E81+E90) -> 60.12 | F91: 205.16 | G91: 1553.57 | H91: 0.65 | I91: 43.67 | J91: 109.95 | K91: 2.04 | L91: 515.79 | M91: 910.98 | N91: 180.25 | O91: 12.21
A93: 5 день
A94: Завтрак
A95: 338/17 | B95: Десерт фруктовый Мандарин | C95: 80 | D95: 0.6 | E95: 0.20 | F95: 15.2 | G95: 64.0 | H95: 0.05 | I95: 0.00 | J95: 30.4 | K95: 0.16 | L95: 28.80 | M95: 17 | N95: 10 | O95: 0.1
A96: 1/17 | B96: Бутерброд с маслом | C96: 30/5 | D96: 2.33 | E96: 4.53 | F96: 16.09 | G96: 113.89 | H96: 0.05 | I96: 0.02 | J96: 0.00 | K96: 0.00 | L96: 9 | M96: 26.4 | N96: 10.52 | O96: 0.49
A97: 209/17 | B97: Яйцо вареное | C97: 1 шт | D97: 5.52 | E97: 5.04 | F97: 0.00 | G97: 67.44 | H97: 0.03 | I97: 0.27 | J97: 0.00 | K97: 0.29 | L97: 26.4 | M97: 92.16 | N97: 5.76 | O97: 1.2
A98: 181/17 | B98: Каша молочная манная вязкая с маслом | C98: 200/5 | D98: 6.11 | E98: 10.72 | F98: 32.38 | G98: 251.00 | H98: 0.08 | I98: 3.53 | J98: 1.17 | K98: 0.46 | L98: 133.77 | M98: 118.19 | N98: 20.30 | O98: 0.47
A99: 648/04 | B99: Кисель из концентрата полусладкий | C99: 200 | D99: 0.1 | E99: 0.00 | F99: 21.48 | G99: 86.3 | H99: 0.00 | I99: 0.00 | J99: 0.96 | K99: 0.00 | L99: 3.36 | M99: 4.32 | N99: 1.44 | O99: 0.1
D100: =SUM(D95:D99) -> 14.6 | E100: =SUM(E95:E99) -> 20.5 | F100: 85.2 | G100: 582.6 | H100: 0.2 | I100: 3.8 | J100: 32.5 | K100: 0.9 | L100: 201.3 | M100: 258.1 | N100: 48.0 | O100: 2.4
A101: Пром. | B101: Сок фруктовый 0,200 гр | C101: 1 шт | D101: 1.4 | E101: 0.00 | F101: 24.4 | G101: 103.2 | H101: 0.02 | I101: 0.00 | J101: 14 | K101: 0.00 | L101: 34 | M101: 36 | N101: 12 | O101: 0.6
D102: 1.4 | E102: 0.00 | F102: 24.4 | G102: 103.2 | H102: 0.02 | I102: 0.00 | J102: 14 | K102: 0.00 | L102: 34 | M102: 36 | N102: 12 | O102: 0.6
A103: Обед
A104: 71/17 | B104: Огурцы свежие порционно (доп. гарнир) | C104: 50 | D104: 0.49 | E104: 0.06 | F104: 1.53 | G104: 8.63 | H104: 0.02 | I104: 0.01 | J104: 6.12 | K104: 0.06 | L104: 14.08 | M104: 25.7 | N104: 8.57 | O104: 0.37
A105: 110/04 | B105: Борщ с капустой и картоф. с цыпл. со смет. | C105: 250/20/5 | D105: 7.42 | E105: 7.19 | F105: 13.66 | G105: 187 | H105: 0.1 | I105: 27.81 | J105: 11.64 | K105: 0.35 | L105: 154.42 | M105: 121.19 | N105: 27.67 | O105: 1.83
A106: ТТК-6 | B106: Биточки рыбные с соусом сметанным с луком | C106: 75/40 | D106: 11.01 | E106: 9.26 | F106: 8.39 | G106: 211.36 | H106: 0.07 | I106: 0.03 | J106: 3.59 | K106: 0.17 | L106: 69.47 | M106: 124.87 | N106: 38.15 | O106: 0.88
A107: 520/04 | B107: Пюре картофельное | C107: 150 | D107: 3.52 | E107: 5.43 | F107: 23.42 | G107: 155.78 | H107: 0.22 | I107: 0.54 | J107: 5.20 | K107: 0.24 | L107: 52.22 | M107: 147.37 | N107: 32.68 | O107: 1.76
A108: ТТК-257н | B108: Напиток "Плодово-ягодный" из сухофруктов полусладкий | C108: 200 | D108: 0.5 | E108: 0.02 | F108: 19.43 | G108: 79.92 | H108: 0.00 | I108: 0.02 | J108: 0.03 | K108: 0.00 | L108: 8.25 | M108: 2.97 | N108: 1.46 | O108: 0.05
B109: Хлеб Пшеничный | C109: 1/30 | D109: 2.28 | E109: 0.27 | F109: 14.91 | G109: 71.19 | H109: 0.05 | I109: 0.00 | J109: 0.00 | K109: 0.00 | L109: 7.8 | M109: 24.9 | N109: 10.5 | O109: 0.48
B110: Хлеб Ржаной | C110: 1/30 | D110: 2.03 | E110: 0.4 | F110: 15.7 | G110: 74.49 | H110: 0.00 | I110: 0.00 | J110: 0.00 | K110: 0.00 | L110: 0.00 | M110: 0.00 | N110: 0.00 | O110: 0.00
D111: =SUM(D104:D110) -> 27.25 | E111: =SUM(E104:E110) -> 22.63 | F111: 97.04 | G111: 788.07 | H111: 0.46 | I111: 28.41 | J111: 26.58 | K111: 0.82 | L111: 306.24 | M111: 447.00 | N111: 119.03 | O111: 5.37
D112: =SUM(D100+D102+D111) -> 43.27 | E112: =SUM(E100+E102+E111) -> 43.12 | F112: 206.62 | G112: 1473.90 | H112: 0.69 | I112: 32.23 | J112: 73.11 | K112: 1.73 | L112: 541.57 | M112: 741.07 | N112: 179.05 | O112: 8.33
A114: 6 день
A115: Завтрак
A116: 338/17 | B116: Десерт фруктовый Яблоко | C116: 110 | D116: 0.60 | E116: 0.60 | F116: 13.05 | G116: 76.50 | H116: 0.04 | I116: 0.07 | J116: 14.5 | K116: 0.29 | L116: 24.22 | M116: 15.95 | N116: 11.6 | O116: 2.9
A117: 223/17 | B117: Запеканка из творога со сгущенным молоком | C117: 150/30 | D117: 26.30 | E117: 19.9 | F117: 50.40 | G117: 564.00 | H117: 0.11 | I117: 4.54 | J117: 0.85 | K117: 0.57 | L117: 352.05 | M117: 334.26 | N117: 40.73 | O117: 1.16
A118: ТТК-475 | B118: Чай полусладкий | C118: 200 | D118: 0.2 | E118: 0.05 | F118: 7.00 | G118: 28.0 | H118: 0.00 | I118: 0.05 | J118: 0.1 | K118: 0.00 | L118: 4.95 | M118: 8.25 | N118: 4.4 | O118: 0.82
B119: Хлеб Пшеничный | C119: 1/30 | D119: 2.28 | E119: 0.27 | F119: 14.91 | G119: 71.19 | H119: 0.05 | I119: 0.00 | J119: 0.00 | K119: 0.00 | L119: 7.8 | M119: 24.9 | N119: 10.5 | O119: 0.48
D120: =SUM(D116:D119) -> 29.38 | E120: =SUM(E116:E119) -> 20.82 | F120: 85.36 | G120: 739.69 | H120: 0.20 | I120: 4.66 | J120: 15.45 | K120: 0.86 | L120: 389.02 | M120: 383.36 | N120: 67.23 | O120: 5.36
A121: Пром. | B121: Сок фруктовый 0,200 гр | C121: 1 шт | D121: 1.4 | E121: 0.00 | F121: 24.4 | G121: 103.2 | H121: 0.02 | I121: 0.00 | J121: 14 | K121: 0.00 | L121: 34 | M121: 36 | N121: 12 | O121: 0.6
D122: 1.4 | E122: 0.00 | F122: 24.4 | G122: 103.2 | H122: 0.02 | I122: 0.00 | J122: 14 | K122: 0.00 | L122: 34 | M122: 36 | N122: 12 | O122: 0.6
A123: Обед
A124: 71/17 | B124: Помидор свежий порционно (доп. гарнир) | C124: 50 | D124: 0.31 | E124: 0.10 | F124: 2.45 | G124: 13.00 | H124: 0.00 | I124: 0.02 | J124: 8.26 | K124: 0.31 | L124: 6.12 | M124: 14.72 | N124: 6.67 | O124: 0.18
A125: 139/04 | B125: Суп картофельный с бобовыми с мясными фрикадельками | C125: 250/20 | D125: 11.17 | E125: 6.73 | F125: 22.20 | G125: 196.00 | H125: 0.31 | I125: 0.27 | J125: 4.6 | K125: 0.6 | L125: 139.46 | M125: 160.04 | N125: 29.69 | O125: 2.69
A126: ТТК-26 | B126: Котлеты "Татарские" с соусом томатным | C126: 75/40 | D126: 12.59 | E126: 17.08 | F126: 12.06 | G126: 252.35 | H126: 0.08 | I126: 0.01 | J126: 1.76 | K126: 0.34 | L126: 29.17 | M126: 229.18 | N126: 27.93 | O126: 1.92
A127: 510/04 | B127: Каша рисовая вязкая | C127: 150 | D127: 4.40 | E127: 4.30 | F127: 24.35 | G127: 165.50 | H127: 0.11 | I127: 0.02 | J127: 0.00 | K127: 0.26 | L127: 15.26 | M127: 107.58 | N127: 17.5 | O127: 0.7
A128: ТТК-258к | B128: Напиток "Плодово-ягодный" из изюма полусладкий | C128: 200 | D128: 0.51 | E128: 0.08 | F128: 19.38 | G128: 80.23 | H128: 0.00 | I128: 0.03 | J128: 0.15 | K128: 0.65 | L128: 8.25 | M128: 10.65 | N128: 4.8 | O128: 0.41
B129: Хлеб Пшеничный | C129: 1/30 | D129: 2.28 | E129: 0.27 | F129: 14.91 | G129: 71.19 | H129: 0.05 | I129: 0.00 | J129: 0.00 | K129: 0.00 | L129: 7.8 | M129: 24.9 | N129: 10.5 | O129: 0.48
B130: Хлеб Ржаной | C130: 1/30 | D130: 2.03 | E130: 0.4 | F130: 15.7 | G130: 74.49 | H130: 0.00 | I130: 0.00 | J130: 0.00 | K130: 0.00 | L130: 0.00 | M130: 0.00 | N130: 0.00 | O130: 0.00
D131: =SUM(D124:D130) -> 33.29 | E131: =SUM(E124:E130) -> 28.96 | F131: 111.05 | G131: 852.76 | H131: 0.55 | I131: 0.35 | J131: 14.77 | K131: 2.16 | L131: 206.06 | M131: 547.07 | N131: 97.09 | O131: 6.38
D132: =SUM(D120+D122+D131) -> 64.07 | E132: =SUM(E120+E122+E131) -> 49.78 | F132: 220.81 | G132: 1695.65 | H132: 0.77 | I132: 5.01 | J132: 44.22 | K132: 3.02 | L132: 629.08 | M132: 966.43 | N132: 176.32 | O132: 12.34
A134: 7 день
A135: Завтрак
A136: 1/17 | B136: Бутерброд с маслом | C136: 30/5 | D136: 2.33 | E136: 4.53 | F136: 16.09 | G136: 113.89 | H136: 0.05 | I136: 0.02 | J136: 0.00 | K136: 0.00 | L136: 9 | M136: 26.4 | N136: 10.52 | O136: 0.49
A137: 209/17 | B137: Яйцо вареное | C137: 1 шт | D137: 5.52 | E137: 5.04 | F137: 0.00 | G137: 67.44 | H137: 0.03 | I137: 0.27 | J137: 0.00 | K137: 0.29 | L137: 26.4 | M137: 92.16 | N137: 5.76 | O137: 1.2
A138: 173/17 | B138: Каша молочная Геркулесовая вязкая с маслом | C138: 200/5 | D138: 8.01 | E138: 9.75 | F138: 36.60 | G138: 262.70 | H138: 0.24 | I138: 1.28 | J138: 0.20 | K138: 0.81 | L138: 143.47 | M138: 235.90 | N138: 41.10 | O138: 1.72
A139: 377/17 | B139: Чай с лимоном (полусладкий) | C139: 200/7 | D139: 0.27 | E139: 0.06 | F139: 15.28 | G139: 62.73 | H139: 0.00 | I139: 0.07 | J139: 3.3 | K139: 0.02 | L139: 8.15 | M139: 10.01 | N139: 5.36 | O139: 0.87
A140: Пром. | B140: Батончик Бон-Тайм 20 гр | C140: 1 шт | D140: 0.50 | E140: 3.60 | F140: 15.60 | G140: 108.30 | H140: 0.01 | I140: 0.00 | J140: 0.0 | K140: 0.00 | L140: 46.70 | M140: 0.00 | N140: 9.50 | O140: 0.45
D141: =SUM(D136:D140) -> 16.63 | E141: =SUM(E136:E140) -> 22.98 | F141: 83.57 | G141: 615.06 | H141: 0.33 | I141: 1.64 | J141: 3.50 | K141: 1.12 | L141: 233.72 | M141: 364.47 | N141: 72.24 | O141: 4.73
A142: Пром. | B142: Сок фруктовый 0,200 гр | C142: 1 шт | D142: 1.4 | E142: 0.00 | F142: 24.4 | G142: 103.2 | H142: 0.02 | I142: 0.00 | J142: 14 | K142: 0.00 | L142: 34 | M142: 36 | N142: 12 | O142: 0.6
D143: 1.4 | E143: 0.00 | F143: 24.4 | G143: 103.2 | H143: 0.02 | I143: 0.00 | J143: 14 | K143: 0.00 | L143: 34 | M143: 36 | N143: 12 | O143: 0.6
A144: Обед
A145: ТТК-513н | B145: Салат " Свежесть " | C145: 75 | D145: 1.35 | E145: 3.07 | F145: 6.52 | G145: 59.12 | H145: 0.02 | I145: 0.23 | J145: 4.45 | K145: 0.08 | L145: 37.1 | M145: 23.48 | N145: 12.07 | O145: 0.46
A146: ТТК-425 | B146: Суп "Гречишное зернышко" с мясными фрикадельками | C146: 250/20 | D146: 9.25 | E146: 8.64 | F146: 20.8 | G146: 232.00 | H146: 0.22 | I146: 26.64 | J146: 6.60 | K146: 0.65 | L146: 193.90 | M146: 213.83 | N146: 20.73 | O146: 2.56
A147: ТТК 951 | B147: Грудка, запеченая с сыром с горошком конс. | C147: 75/15 | D147: 21.30 | E147: 18.6 | F147: 5.14 | G147: 265.00 | H147: 0.11 | I147: 2.21 | J147: 0.20 | K147: 0.72 | L147: 162.04 | M147: 285.79 | N147: 38.57 | O147: 1.97
A148: 202/17 | B148: Макаронные изделия отварные с маслом | C148: 150/5 | D148: 5.36 | E148: 4.37 | F148: 36.54 | G148: 206.89 | H148: 0.09 | I148: 0.02 | J148: 0.00 | K148: 1.07 | L148: 15.96 | M148: 47.07 | N148: 8.52 | O148: 0.87
A149: ТТК-257н | B149: Напиток "Плодово-ягодный" из сухофруктов полусладкий | C149: 200 | D149: 0.5 | E149: 0.02 | F149: 19.43 | G149: 79.92 | H149: 0.00 | I149: 0.02 | J149: 0.03 | K149: 0.00 | L149: 8.25 | M149: 2.97 | N149: 1.46 | O149: 0.05
B150: Хлеб Пшеничный | C150: 1/30 | D150: 2.28 | E150: 0.27 | F150: 14.91 | G150: 71.19 | H150: 0.05 | I150: 0.00 | J150: 0.00 | K150: 0.00 | L150: 7.8 | M150: 24.9 | N150: 10.5 | O150: 0.48
B151: Хлеб Ржаной | C151: 1/30 | D151: 2.03 | E151: 0.4 | F151: 15.7 | G151: 74.49 | H151: 0.00 | I151: 0.00 | J151: 0.00 | K151: 0.00 | L151: 0.00 | M151: 0.00 | N151: 0.00 | O151: 0.00
D152: =SUM(D145:D151) -> 42.07 | E152: =SUM(E145:E151) -> 35.37 | F152: 119.04 | G152: 988.61 | H152: 0.49 | I152: 29.12 | J152: 11.28 | K152: 2.52 | L152: 425.05 | M152: 598.04 | N152: 91.85 | O152: 6.39
D153: =SUM(D141+D143+D152) -> 60.10 | E153: =SUM(E141+E143+E152) -> 58.35 | F153: 227.01 | G153: 1706.87 | H153: 0.84 | I153: 30.76 | J153: 28.78 | K153: 3.64 | L153: 692.77 | M153: 998.51 | N153: 176.09 | O153: 11.72
A155: 8 день
A156: Завтрак
A157: 338/17 | B157: Десерт фруктовый Груша | C157: 150 | D157: 0.60 | E157: 0.45 | F157: 15.45 | G157: 70.50 | H157: 0.03 | I157: 0.00 | J157: 7.50 | K157: 0.15 | L157: 28.50 | M157: 24.00 | N157: 18.00 | O157: 3.45
A158: 174/17 | B158: Каша молочная ячневая вязкая с маслом | C158: 200/5 | D158: 7.31 | E158: 10.98 | F158: 39.20 | G158: 286.00 | H158: 0.12 | I158: 0.54 | J158: 0.96 | K158: 1.18 | L158: 162.00 | M158: 241.51 | N158: 36.46 | O158: 0.94
A159: ТТК-437 | B159: Чай полусладкий с молоком | C159: 200 | D159: 1.67 | E159: 1.25 | F159: 7.53 | G159: 48.09 | H159: 0.01 | I159: 0.01 | J159: 2.10 | K159: 0.00 | L159: 76.50 | M159: 48.70 | N159: 8.8 | O159: 0.4
B160: Хлеб Пшеничный | C160: 1/30 | D160: 2.28 | E160: 0.27 | F160: 14.91 | G160: 71.19 | H160: 0.05 | I160: 0.00 | J160: 0.00 | K160: 0.00 | L160: 7.8 | M160: 24.9 | N160: 10.5 | O160: 0.48
D161: =SUM(D157:D160) -> 11.86 | E161: =SUM(E157:E160) -> 12.95 | F161: 77.09 | G161: 475.78 | H161: 0.21 | I161: 0.55 | J161: 10.56 | K161: 1.33 | L161: 274.80 | M161: 339.11 | N161: 73.76 | O161: 5.30
A162: Пром. | B162: Сок фруктовый 0,200 гр | C162: 1 шт | D162: 1.4 | E162: 0.00 | F162: 24.4 | G162: 103.2 | H162: 0.02 | I162: 0.00 | J162: 14 | K162: 0.00 | L162: 34 | M162: 36 | N162: 12 | O162: 0.6
D163: 1.4 | E163: 0.00 | F163: 24.4 | G163: 103.2 | H163: 0.02 | I163: 0.00 | J163: 14 | K163: 0.00 | L163: 34 | M163: 36 | N163: 12 | O163: 0.6
A164: Обед
A165: 71/17 | B165: Огурцы свежие порционно (доп. гарнир) | C165: 50 | D165: 0.49 | E165: 0.06 | F165: 1.53 | G165: 8.63 | H165: 0.02 | I165: 0.01 | J165: 6.12 | K165: 0.06 | L165: 14.08 | M165: 25.7 | N165: 8.57 | O165: 0.37
A166: 96/17 | B166: Рассольник Ленинградский с цыпл. со смет. | C166: 250/20/5 | D166: 6.70 | E166: 7.50 | F166: 17.40 | G166: 178.29 | H166: 0.17 | I166: 25.86 | J166: 5.09 | K166: 0.39 | L166: 139.33 | M166: 163.38 | N166: 29.13 | O166: 1.82
A167: 243/17 | B167: Сосиски отварные | C167: 100 | D167: 9.24 | E167: 13.70 | F167: 1.50 | G167: 168.70 | H167: 0.05 | I167: 0.02 | J167: 0.00 | K167: 0.15 | L167: 172.17 | M167: 113.19 | N167: 16.63 | O167: 0.15
A168: ТТК 11н | B168: Картофель "По-деревенски" | C168: 150 | D168: 4.75 | E168: 13.7 | F168: 36.6 | G168: 285.00 | H168: 0.37 | I168: 0.00 | J168: 15.20 | K168: 0.37 | L168: 42.09 | M168: 213.25 | N168: 34.45 | O168: 2.97
A169: 342/17 | B169: Компот "Плодово-ягодный" из свежих яблок | C169: 200 | D169: 0.18 | E169: 0.18 | F169: 19.06 | G169: 78.58 | H169: 0.01 | I169: 0.02 | J169: 4.54 | K169: 0.09 | L169: 7.58 | M169: 4.99 | N169: 3.63 | O169: 0.91
B170: Хлеб Пшеничный | C170: 1/30 | D170: 2.28 | E170: 0.27 | F170: 14.91 | G170: 71.19 | H170: 0.05 | I170: 0.00 | J170: 0.00 | K170: 0.00 | L170: 7.8 | M170: 24.9 | N170: 10.5 | O170: 0.48
B171: Хлеб Ржаной | C171: 1/30 | D171: 2.03 | E171: 0.4 | F171: 15.7 | G171: 74.49 | H171: 0.00 | I171: 0.00 | J171: 0.00 | K171: 0.00 | L171: 0.00 | M171: 0.00 | N171: 0.00 | O171: 0.00
D172: =SUM(D165:D171) -> 25.67 | E172: =SUM(E165:E171) -> 35.81 | F172: 106.70 | G172: 864.88 | H172: 0.67 | I172: 25.91 | J172: 30.95 | K172: 1.06 | L172: 383.05 | M172: 545.41 | N172: 102.91 | O172: 6.70
D173: =SUM(D161+D163+D172) -> 38.9 | E173: =SUM(E161+E163+E172) -> 48.8 | F173: 208.2 | G173: 1443.9 | H173: 0.9 | I173: 26.5 | J173: 55.5 | K173: 2.4 | L173: 691.9 | M173: 920.5 | N173: 188.7 | O173: 12.6
A175: 9 день
A176: Завтрак
A177: 338/17 | B177: Десерт фруктовый Яблоко | C177: 110 | D177: 0.60 | E177: 0.60 | F177: 13.05 | G177: 76.50 | H177: 0.04 | I177: 0.07 | J177: 14.5 | K177: 0.29 | L177: 24.22 | M177: 15.95 | N177: 11.6 | O177: 2.9
A178: 3/17 | B178: Бутерброд с маслом с сыром | C178: 30/5/10 | D178: 5.25 | E178: 7.19 | F178: 16.06 | G178: 149.0 | H178: 0.05 | I178: 0.02 | J178: 0.08 | K178: 0.04 | L178: 118 | M178: 91.8 | N178: 16.52 | O178: 0.57
A179: 173/17 | B179: Каша молочная гречневая вязкая с маслом | C179: 200/5 | D179: 9.09 | E179: 12.99 | F179: 35.18 | G179: 295.00 | H179: 0.21 | I179: 0.65 | J179: 1.64 | K179: 1.74 | L179: 183.58 | M179: 245.75 | N179: 32.10 | O179: 2.87
A180: ТТК-343н | B180: Кофейный напиток полусладкий | C180: 200 | D180: 3.02 | E180: 5.22 | F180: 15.9 | G180: 122.65 | H180: 0.04 | I180: 1.41 | J180: 0.83 | K180: 0.06 | L180: 93.98 | M180: 86.76 | N180: 23.07 | O180: 0.31
D181: =SUM(D177:D180) -> 17.96 | E181: =SUM(E177:E180) -> 26.00 | F181: 80.19 | G181: 643.10 | H181: 0.34 | I181: 2.15 | J181: 17.05 | K181: 2.13 | L181: 419.78 | M181: 440.26 | N181: 83.29 | O181: 6.65
A182: Пром. | B182: Сок фруктовый 0,200 гр | C182: 1 шт | D182: 1.4 | E182: 0.00 | F182: 24.4 | G182: 103.2 | H182: 0.02 | I182: 0.00 | J182: 14 | K182: 0.00 | L182: 34 | M182: 36 | N182: 12 | O182: 0.6
D183: 1.4 | E183: 0.00 | F183: 24.4 | G183: 103.2 | H183: 0.02 | I183: 0.00 | J183: 14 | K183: 0.00 | L183: 34 | M183: 36 | N183: 12 | O183: 0.6
A184: Обед
A185: 24/17 | B185: Салат из св.помидоров и огурцов | C185: 75 | D185: 0.7 | E185: 4.50 | F185: 5.55 | G185: 53.0 | H185: 0.04 | I185: 0.00 | J185: 12.75 | K185: 0.17 | L185: 12.7 | M185: 23.30 | N185: 12.10 | O185: 0.54
A186: 110/04 | B186: Борщ с капустой и картоф. с цыпл. со смет. | C186: 250/20/5 | D186: 7.42 | E186: 7.19 | F186: 13.66 | G186: 186.70 | H186: 0.1 | I186: 27.81 | J186: 11.64 | K186: 0.35 | L186: 154.42 | M186: 121.19 | N186: 27.67 | O186: 1.83
A187: ттк№-200н | B187: Зразы "На здоровье "с овощами (зел.горошек) | C187: 75/15 | D187: 10.7 | E187: 18.28 | F187: 8.19 | G187: 274.03 | H187: 0.09 | I187: 0.04 | J187: 2.9 | K187: 0.25 | L187: 107.39 | M187: 182.94 | N187: 29.09 | O187: 1.37
A188: 202/17 | B188: Макаронные изделия отварные с маслом | C188: 150/5 | D188: 5.36 | E188: 4.37 | F188: 36.54 | G188: 206.89 | H188: 0.09 | I188: 0.02 | J188: 0.00 | K188: 1.07 | L188: 15.96 | M188: 47.07 | N188: 8.52 | O188: 0.87
A189: ТТК-258к | B189: Напиток "Плодово-ягодный" из изюма полусладкий | C189: 200 | D189: 0.51 | E189: 0.08 | F189: 19.38 | G189: 80.23 | H189: 0.00 | I189: 0.03 | J189: 0.15 | K189: 0.65 | L189: 8.25 | M189: 10.65 | N189: 4.8 | O189: 0.41
B190: Хлеб Пшеничный | C190: 1/30 | D190: 2.28 | E190: 0.27 | F190: 14.91 | G190: 71.19 | H190: 0.05 | I190: 0.00 | J190: 0.00 | K190: 0.00 | L190: 7.8 | M190: 24.9 | N190: 10.5 | O190: 0.48
B191: Хлеб Ржаной | C191: 1/30 | D191: 2.03 | E191: 0.4 | F191: 15.7 | G191: 74.49 | H191: 0.00 | I191: 0.00 | J191: 0.00 | K191: 0.00 | L191: 0.00 | M191: 0.00 | N191: 0.00 | O191: 0.00
D192: =SUM(D185:D191) -> 28.97 | E192: =SUM(E185:E191) -> 35.09 | F192: 113.93 | G192: 946.53 | H192: 0.37 | I192: 27.90 | J192: 27.44 | K192: 2.49 | L192: 306.52 | M192: 410.05 | N192: 92.68 | O192: 5.50
D193: =SUM(D181+D183+D192) -> 48.33 | E193: =SUM(E181+E183+E192) -> 61.09 | F193: 218.52 | G193: 1692.83 | H193: 0.73 | I193: 30.05 | J193: 58.49 | K193: 4.62 | L193: 760.30 | M193: 886.31 | N193: 187.97 | O193: 12.75
A195: 10 день
A196: Завтрак
A197: 338/17 | B197: Десерт фруктовый Апельсин | C197: 170 | D197: 1.53 | E197: 0.30 | F197: 17.50 | G197: 76.00 | H197: 0.07 | I197: 0.00 | J197: 60 | K197: 0.37 | L197: 57.8 | M197: 39.1 | N197: 22.1 | O197: 0.51
A198: 210/17 | B198: Омлет натуральный с маслом | C198: 180/5 | D198: 17.32 | E198: 29.70 | F198: 2.6 | G198: 348.60 | H198: 0.12 | I198: 1.94 | J198: 0.67 | K198: 0.87 | L198: 144.46 | M198: 312.93 | N198: 23.96 | O198: 3.53
A199: ТТК-475 | B199: Чай полусладкий | C199: 200 | D199: 0.2 | E199: 0.05 | F199: 7.00 | G199: 28.0 | H199: 0.00 | I199: 0.05 | J199: 0.1 | K199: 0.00 | L199: 4.95 | M199: 8.25 | N199: 4.4 | O199: 0.82
B200: Хлеб Пшеничный | C200: 1/30 | D200: 2.28 | E200: 0.27 | F200: 14.91 | G200: 71.19 | H200: 0.05 | I200: 0.00 | J200: 0.00 | K200: 0.00 | L200: 7.8 | M200: 24.9 | N200: 10.5 | O200: 0.48
D201: =SUM(D197:D200) -> 21.33 | E201: =SUM(E197:E200) -> 30.32 | F201: 42.01 | G201: 523.79 | H201: 0.24 | I201: 1.99 | J201: 60.77 | K201: 1.24 | L201: 215.01 | M201: 385.18 | N201: 60.96 | O201: 5.34
A202: Пром. | B202: Сок фруктовый 0,200 гр | C202: 1 шт | D202: 1.4 | E202: 0.00 | F202: 24.4 | G202: 103.2 | H202: 0.02 | I202: 0.00 | J202: 14 | K202: 0.00 | L202: 34 | M202: 36 | N202: 12 | O202: 0.6
D203: 1.4 | E203: 0.00 | F203: 24.4 | G203: 103.2 | H203: 0.02 | I203: 0.00 | J203: 14 | K203: 0.00 | L203: 34 | M203: 36 | N203: 12 | O203: 0.6
A204: Обед
A205: 71/17 | B205: Помидор свежий порционно (доп. гарнир) | C205: 50 | D205: 0.31 | E205: 0.10 | F205: 2.45 | G205: 13.00 | H205: 0.00 | I205: 0.02 | J205: 8.26 | K205: 0.31 | L205: 6.12 | M205: 14.72 | N205: 6.67 | O205: 0.18
A206: 148/2004 | B206: Суп лапша домашняя с цыплятами | C206: 250/20 | D206: 7.89 | E206: 8.40 | F206: 13.96 | G206: 171 | H206: 0.08 | I206: 0.28 | J206: 0.6 | K206: 0.47 | L206: 120.91 | M206: 90.61 | N206: 16.48 | O206: 0.96
A207: 229/17 | B207: Рыба тушенная с овощами | C207: 50/50 | D207: 8.24 | E207: 10.72 | F207: 5.18 | G207: 183.00 | H207: 0.09 | I207: 0.46 | J207: 0.00 | K207: 1.07 | L207: 31.50 | M207: 149.60 | N207: 28 | O207: 0.80
A208: 520/04 | B208: Пюре картофельное | C208: 150 | D208: 3.52 | E208: 5.43 | F208: 23.42 | G208: 155.78 | H208: 0.22 | I208: 0.54 | J208: 5.20 | K208: 0.24 | L208: 52.22 | M208: 147.37 | N208: 32.68 | O208: 1.76
A209: 388/17 | B209: Напиток из шиповника | C209: 200 | D209: 0.68 | E209: 0.28 | F209: 20.76 | G209: 88.20 | H209: 0.01 | I209: 0.00 | J209: 15.30 | K209: 0.2 | L209: 21.34 | M209: 3.44 | N209: 3.44 | O209: 0.60
B210: Хлеб Пшеничный | C210: 1/30 | D210: 2.28 | E210: 0.27 | F210: 14.91 | G210: 71.19 | H210: 0.05 | I210: 0.00 | J210: 0.00 | K210: 0.00 | L210: 7.8 | M210: 24.9 | N210: 10.5 | O210: 0.48
B211: Хлеб Ржаной | C211: 1/30 | D211: 2.03 | E211: 0.4 | F211: 15.7 | G211: 74.49 | H211: 0.00 | I211: 0.00 | J211: 0.00 | K211: 0.00 | L211: 0.00 | M211: 0.00 | N211: 0.00 | O211: 0.00
D212: =SUM(D205:D211) -> 24.95 | E212: =SUM(E205:E211) -> 25.60 | F212: 96.38 | G212: 756.66 | H212: 0.45 | I212: 1.30 | J212: 29.36 | K212: 2.33 | L212: 239.89 | M212: 430.64 | N212: 97.37 | O212: 4.78
D213: =SUM(D201+D203+D212) -> 47.68 | E213: =SUM(E201+E203+E212) -> 55.92 | F213: 162.79 | G213: 1383.65 | H213: 0.71 | I213: 3.29 | J213: 104.13 | K213: 3.57 | L213: 488.90 | M213: 851.82 | N213: 170.33 | O213: 10.72
A215: 11 день
... 218 more rows
